Cogmind - Beta 10.2 @@@ ROGUE MODE // 2020.11.05 @ 18:22:37 // Halloween2020/ForbiddenLore Player: blelm Result: Self-destructed Performance ------------- Evolutions (2) 1000 Regions Visited (7) 1400 Robots Destroyed (79) 395 Value Destroyed (2091) 2091 Prototype IDs (30) 600 Alien Tech Used (0) 0 Bonus (541) 541 TOTAL SCORE: 6027 Bonus ------- High Alert Combat Kills 188 Follower Combat Kills 53 Aligned with FarCom 300 Cogmind --------- Core Integrity 337/550 Matter 225/300 Energy 160/160 System Corruption 0% Temperature Cool (57) Movement Treading (180) Ox1 Location -8/Materials Parts ------- > --- POWER (1) -------- Light Nuclear Core > --- PROPULSION (3) --- Medium Treads Medium Treads Medium Treads > --- UTILITY (5) ------ High-capacity Storage Unit High-capacity Storage Unit High-capacity Storage Unit Advanced Targeting Computer Insulated Plating > --- WEAPON (2) ------- Heavy Assault Rifle Enhanced Autogun > --- INVENTORY (28) --- Light Nuclear Core Armored Treads Armored Treads Armored Treads Armored Treads Medium Treads Makeshift Hover Unit Cooling System Large Storage Unit Large Storage Unit Experimental Sensor Array Advanced Signal Interpreter Advanced Terrain Scanner Makeshift Terrain Scan Processor Improved Armor Integrity Analyzer Weapon Cycler EX Chip 1 Hacking Suite EX Chip 2 Heavy EM Pulse Gun Heavy Assault Rifle Heavy Assault Rifle Enhanced Autogun Improved Grenade Launcher Heavy Missile Launcher Chainsword Deploy-a-Sentry Peak State ------------ > --- POWER ------------ Light Nuclear Core > --- PROPULSION ------- Medium Treads Medium Treads Medium Treads > --- UTILITY ---------- High-capacity Storage Unit High-capacity Storage Unit High-capacity Storage Unit Advanced Targeting Computer Light Armor Plating > --- WEAPON ----------- Heavy Assault Rifle Enhanced Autogun > --- INVENTORY -------- Light Nuclear Core Armored Treads Armored Treads Armored Treads Armored Treads Medium Treads Makeshift Hover Unit Makeshift Hover Unit Cooling System Large Storage Unit Large Storage Unit Experimental Sensor Array Advanced Signal Interpreter Advanced Terrain Scanner Makeshift Terrain Scan Processor Advanced Core Analyzer Improved Armor Integrity Analyzer Advanced Transmission Jammer EX Chip 1 Hacking Suite EX Chip 2 Heavy EM Pulse Gun Heavy Assault Rifle Enhanced Autogun Mini Grenade Launcher Heavy Missile Launcher Chainsword Deploy-a-Sentry [Rating: 38] Favorites ----------- Power Light Nuclear Core Engine Heavy Ion Engine Power Core Light Nuclear Core Propulsion Light Treads Treads Light Treads Leg Aluminum Leg Wheel Compact Wheel Hover Unit Aerolev Unit Flight Unit Improved Flight Unit Utility High-capacity Storage Unit Device Advanced Terrain Scanner Storage High-capacity Storage Unit Processor Advanced Targeting Computer Protection Hardened Light Armor Plating Weapon Heavy Assault Rifle Energy Gun Heavy EM Pulse Gun Ballistic Gun Heavy Assault Rifle Ballistic Cannon Improved Light Cannon Launcher Mini Grenade Launcher Slashing Weapon Makeshift Sword Build | -11 -10 -10 -9 -9 -9 -8 -8 ------- Run | Scr Mat Min Mat Min Exi Min Mat Slots Evolved 4 | . . . 2 . . . 2 Power . | . . . . . . . . Propulsion 1 | . . . 1 . . . . Utility 3 | . . . 1 . . . 2 Weapon . | . . . . . . . . Parts Attached 82 | 3 4 1 4 2 30 3 35 Power 7 | . . 1 1 . 2 . 3 Engine 3 | . . . 1 . 1 . 1 Core 4 | . . 1 . . 1 . 2 Reactor . | . . . . . . . . Propulsion 19 | 2 . . 1 . 5 1 10 Treads 14 | 1 . . 1 . 4 1 7 Leg . | . . . . . . . . Wheel 2 | 1 . . . . 1 . . Hover 2 | . . . . . . . 2 Flight 1 | . . . . . . . 1 Utility 25 | 1 3 . 1 . 10 1 9 Device 2 | . . . . . . . 2 Storage 9 | 1 3 . . . 4 . 1 Processor 2 | . . . . . . . 2 Hackware . | . . . . . . . . Protection 12 | . . . 1 . 6 1 4 Artifact . | . . . . . . . . Weapon 31 | . 1 . 1 2 13 1 13 Energy Gun 11 | . 1 . . . 6 . 4 Energy Cannon . | . . . . . . . . Ballistic Gun 10 | . . . . 2 3 . 5 Ballistic Cannon 2 | . . . . . . . 2 Launcher 4 | . . . 1 . 2 1 . Special Weapon . | . . . . . . . . Impact Weapon . | . . . . . . . . Slashing Weapon 4 | . . . . . 2 . 2 Piercing Weapon . | . . . . . . . . Special Melee Weapon . | . . . . . . . . Unidentified Prototypes 7 | . . . 1 . . . 6 Parts Lost 14 | . . . . . 8 2 4 Power 1 | . . . . . 1 . . Propulsion 4 | . . . . . 3 1 . Utility 7 | . . . . . 2 1 4 Weapon 2 | . . . . . 2 . . Highest Loss Streak 4 | . . . . . 4 2 1 Average Slot Usage (%) 99 | . 100 100 100 100 99 100 98 Engine 7 | . 14 7 5 11 9 11 2 Core 3 | . . 6 5 . 1 . 6 Treads 25 | . 14 14 22 22 30 33 26 Wheel 4 | . 14 14 11 11 2 . . Storage 21 | . 28 28 22 22 14 22 26 Processor 3 | . . . . . . . 9 Protection 10 | . . . 11 11 18 11 8 Energy Gun 3 | . 14 14 9 . 2 . . Ballistic Gun 12 | . 14 14 11 19 14 . 11 Launcher 1 | . . . 1 2 . 11 . Slashing Weapon 2 | . . . . . 3 11 2 Naked Turns . | . . . . . . . . Heaviest Build 113 | 15 72 74 83 84 83 76 113 Greatest Support 84 | 16 16 16 20 40 60 60 84 Greatest Overweight (x) 36 | . 4 4 5 5 5 3 36 Average Overweight (x) 2 | . 2 4 4 4 1 1 1 Largest Inventory Capacity 28 | 8 20 20 20 20 20 20 28 Average Capacity 20 | 6 16 20 20 20 14 20 27 Most Carried 28 | 6 10 13 18 20 20 20 28 Average Carried 17 | 3 8 11 14 19 12 18 25 Final Capacity 28 | 8 20 20 20 20 20 20 28 Final Carried 27 | 3 10 13 18 20 20 18 27 Class Distribution -------------------- 59% | Hauler-Mutant 24% | Mutant 16% | Scavenger-Mutant Dominant Class ---------------- Mutant | -10/Materials Hauler-Mutant | -10/Mines Hauler-Mutant | -9/Materials Hauler-Mutant | -9/Mines Mutant | -9/Exiles Scavenger-Mutant | -8/Mines Hauler-Mutant | -8/Materials Resources | -11 -10 -10 -9 -9 -9 -8 -8 ----------- Run | Scr Mat Min Mat Min Exi Min Mat Matter Collected 2174 | 233 43 34 111 104 555 53 1041 Remotely . | . . . . . . . . Salvage Created 2990 | 80 12 96 366 149 261 103 1923 Parts 190 | 2 2 6 16 3 50 12 99 Haulers Intercepted 7 | . . . 2 . . . 5 Recyclers Shooed 3 | . . . 1 1 . . 1 Parts Field Recycled . | . . . . . . . . Retrieved Matter . | . . . . . . . . Parts Self-Destructed . | . . . . . . . . Prevented . | . . . . . . . . Kills | -11 -10 -10 -9 -9 -9 -8 -8 ------- Run | Scr Mat Min Mat Min Exi Min Mat Combat Hostiles Destroyed 51 | . . 3 4 4 1 7 32 Melee 5 | . . . . . . . 5 Guns 30 | . . 3 1 4 . . 22 Cannons 5 | . . . . . . . 5 AOE 11 | . . . 3 . 1 7 . Classes Destroyed 16 | 1 1 2 3 2 2 . 5 Worker 4 | . . . . . . . 4 Builder 1 | . . . . . . . 1 Tunneler 1 | . . . . . . . 1 Hauler 7 | . . . 2 . . . 5 Recycler 4 | 1 . . 1 1 . . 1 Operator 2 | . . . . . . . 2 Turret 1 | . . . . . 1 . . Watcher 2 | . 1 . . . . . 1 Swarmer 9 | . . 2 . . . 4 3 Grunt 25 | . . 1 2 . . 3 19 Brawler 1 | . . . 1 . . . . Duelist 3 | . . . . . . . 3 Sentry 8 | . . . 1 . . . 7 Demolisher 1 | . . . . 1 . . . Zionite 8 | . . . . . 8 . . Assembled 4 | . . . . 3 1 . . Best Kill Streak 8 | 1 1 1 3 2 3 4 8 Combat Bots Only 4 | . . 1 3 2 1 4 3 Max Kills in Single Turn 3 | 1 1 1 2 2 1 3 1 Gunslinging 1 | . . . . 1 . . . Exploded 3 | . . . 2 . 1 3 . Melee 1 | . . . . . . . 1 Uniques/NPCs Destroyed 4 | . . . . . 4 . . 8R-AWN (-9/Exiles) EX-HEX (-9/Exiles) EX-BIN (-9/Exiles) EX-DEC (-9/Exiles) Combat | -11 -10 -10 -9 -9 -9 -8 -8 -------- Run | Scr Mat Min Mat Min Exi Min Mat Damage Taken 4122 | . . 118 101 369 1338 312 1884 Core 554 | . . 40 47 53 149 52 213 Absorbed by Shields . | . . . . . . . . Core Remaining (%) 69 | 100 . 84 . . . 24 . Volleys Fired 213 | 1 1 8 13 18 41 5 126 Largest 2 | 2 2 2 2 2 2 1 2 Hottest 89 | 60 65 65 65 46 68 30 89 Shots Fired 396 | 2 2 16 22 36 63 5 250 Gun 351 | 2 2 16 18 36 49 . 228 Cannon 22 | . . . . . . . 22 Launcher 23 | . . . 4 . 14 5 . Special . | . . . . . . . . Kinetic 320 | 1 1 8 9 36 35 . 230 Thermal 16 | . . . . . 1 . 15 Explosive 23 | . . . 4 . 14 5 . Electromagnetic 37 | 1 1 8 9 . 13 . 5 Robot Hit Streak 28 | 2 1 6 11 9 6 9 28 Robot Miss Streak 6 | . 1 1 2 3 6 . 3 Penetration Max . | . . . . . . . . Secondary Targets 3 | . . . . 1 . . 2 Max Gunslinging Chain 1 | . . . . 1 . . 1 Shots Hit Robots 320 | 2 1 12 16 24 33 4 228 Core Hits 142 | 2 1 4 10 9 22 11 83 Critical Hits 3 | . . . 1 . 2 . . Critical Kills 1 | . . . . . 1 . . Critical Parts Destroyed 1 | . . . 1 . . . . Melee Attacks 45 | . . . . . 7 . 38 Impact . | . . . . . . . . Slashing 45 | . . . . . 7 . 38 Piercing . | . . . . . . . . Sneak Attacks 14 | . . . . . 5 . 9 Combat Hostiles 1 | . . . . . . . 1 Follow-up Attacks . | . . . . . . . . Damage Inflicted 7898 | 24 12 152 490 354 1431 471 4964 Guns 3931 | 24 12 152 211 326 417 . 2789 Cannons 399 | . . . . . . . 399 Explosions 1247 | . . . 279 . 497 471 . Melee 2146 | . . . . . 517 . 1629 Ramming 175 | . . . . 28 . . 147 Kinetic 3689 | 12 12 57 85 326 272 . 2925 Thermal 315 | . . . . . 123 . 192 Explosive 1140 | . . . 279 . 390 471 . Electromagnetic 433 | 12 . 95 126 . 129 . 71 Impact . | . . . . . . . . Slashing 2146 | . . . . . 517 . 1629 Piercing . | . . . . . . . . Highest Corruption 7 | . . . . . 7 7 . Average Corruption 6 | . . . . . 6 7 . Corruption Purged . | . . . . . . . . Effects 37 | . . . . . 22 15 . Message Errors 11 | . . . . . 6 5 . Matter Fused 8 | . . . . . 5 3 . Heat Flow Errors 1 | . . . . . . 1 . Energy Discharges 8 | . . . . . 3 5 . Data Loss (minor) 5 | . . . . . 4 1 . Misfires 3 | . . . . . 3 . . Targeting Errors 1 | . . . . . 1 . . Overload Shots . | . . . . . . . . Overflow Damage 318 | . . . . . 40 . 278 Projectiles 12 | . . . . . . . 12 Explosions 2 | . . . . . 2 . . Melee 304 | . . . . . 38 . 266 Knockbacks 1 | . . . . . . . 1 Impact . | . . . . . . . . Kinetic 1 | . . . . . . . 1 Secondary . | . . . . . . . . Self-Inflicted Damage 98 | . . . . 13 22 63 . Shots 4 | . . . . . 1 3 . Rammed 8 | . . . . 2 . . 6 Targets Rammed 10 | . . . . 2 . . 8 Kicked . | . . . . . . . . Crushed 2 | . . . . . . . 2 Highest Temperature 369 | . 3 48 60 . 120 157 369 Average Temperature 42 | . 2 16 23 . 35 53 48 Received Heat Transfer 1002 | . . 45 21 9 9 117 801 Effects 1 | . . . . . . . 1 Matter Decay 1 | . . . . . . . 1 Siege Activations . | . . . . . . . . Robots Corrupted . | . . . . . . . . Combat Hostiles . | . . . . . . . . Parts Fried 1 | . . . . . . . 1 Impact Corruptions 2 | . . . . . . . 2 Robots Melted . | . . . . . . . . Combat Hostiles . | . . . . . . . . Parts Melted . | . . . . . . . . Heat Transferred 544 | . . . . . 137 . 407 Parts Sabotaged . | . . . . . . . . Parts Stolen . | . . . . . . . . Parts Stripped . | . . . . . . . . Power Chain Reactions 2 | . . . . . 2 . . Missiles Intercepted . | . . . . . . . . Alert | -11 -10 -10 -9 -9 -9 -8 -8 ------- Run | Scr Mat Min Mat Min Exi Min Mat Peak Influence 718 | 5 33 139 73 62 . 205 718 Initial 27 | . 3 11 . 27 . . 1 Average 203 | 3 16 41 30 31 . 153 363 Maximum Alert Level 3 | . . . . . . 1 3 Low Security (%) 57 | 100 100 100 100 100 . 29 25 Level 1 19 | . . . . . . 70 28 Level 2 22 | . . . . . . . 45 Level 3 . | . . . . . . . . Level 4 . | . . . . . . . . Level 5 . | . . . . . . . . High Security . | . . . . . . . . Max Security . | . . . . . . . . Squads Dispatched 5 | . 1 . . . . . 4 Investigation 1 | . . . . . . . 1 Extermination . | . . . . . . . . Reinforcement 3 | . 1 . . . . . 2 Assault 1 | . . . . . . . 1 Garrison . | . . . . . . . . Intercept . | . . . . . . . . Construction Impeded . | . . . . . . . . Haulers Reinforced . | . . . . . . . . Stealth | -11 -10 -10 -9 -9 -9 -8 -8 --------- Run | Scr Mat Min Mat Min Exi Min Mat Distress Signals 6 | . . . 1 . . . 5 Communications Jammed . | . . . . . . . . Distress Signals . | . . . . . . . . Times Spotted 129 | . 4 9 5 6 25 6 74 Peak Tracking Total 9 | . 3 3 3 3 9 4 6 Tactical Retreats 14 | . . 1 . 1 5 . 7 Traps | -11 -10 -10 -9 -9 -9 -8 -8 ------- Run | Scr Mat Min Mat Min Exi Min Mat Traps Triggered 1 | . . . . . . . 1 Indirectly . | . . . . . . . . Trap Hack Attempts . | . . . . . . . . Triggered . | . . . . . . . . Disarmed . | . . . . . . . . Reprogrammed . | . . . . . . . . Reused . | . . . . . . . . Traps Extracted . | . . . . . . . . Installed . | . . . . . . . . Triggered . | . . . . . . . . Exploded 3 | . . . . . 3 . . Machines | -11 -10 -10 -9 -9 -9 -8 -8 ---------- Run | Scr Mat Min Mat Min Exi Min Mat Machines Disabled 10 | . . . . . 6 2 2 Max in Single Turn 2 | . . . . . 1 2 1 Machines Sabotaged . | . . . . . . . . Garrisons Compromised . | . . . . . . . . Overloaded Fab Kills . | . . . . . . . . Fab Network Shutdowns . | . . . . . . . . Hacking | -11 -10 -10 -9 -9 -9 -8 -8 --------- Run | Scr Mat Min Mat Min Exi Min Mat Machines Accessed 19 | . 3 . 2 . 1 1 12 Terminals 14 | . 3 . 2 . . 1 8 Fabricators . | . . . . . . . . Repair Stations 1 | . . . . . . . 1 Recycling Units 1 | . . . . . . . 1 Scanalyzers 1 | . . . . . . . 1 Garrison Access 1 | . . . . . . . 1 Total Hacks 65 | . 10 . 10 . 1 2 42 Successful 32 | . 5 . 5 . 1 . 21 Failed 33 | . 5 . 5 . . 2 21 Catastrophic 9 | . . . 2 . . 2 5 Database Lockouts . | . . . . . . . . Manual 35 | . 10 . 4 . 1 2 18 Terminals 41 | . 10 . 10 . . 2 19 Fabricators . | . . . . . . . . Repair Stations 6 | . . . . . . . 6 Recycling Units 3 | . . . . . . . 3 Scanalyzers 11 | . . . . . . . 11 Garrison Access 3 | . . . . . . . 3 Terminal Hacks 12 | . 3 . 5 . 1 . 3 Part Schematic 1 | . . . . . . . 1 Robot Analysis 3 | . 2 . 1 . . . . Branch Access Points 2 | . 1 . 1 . . . . Unreport Threat 1 | . . . . . . . 1 Locate Traps 2 | . . . 2 . . . . Hauler Manifests 2 | . . . 1 . . . 1 EX-Prototype ID Bank 1 | . . . . . 1 . . Fabricator Hacks . | . . . . . . . . Repair Station Hacks 6 | . . . . . . . 6 Scan Component 3 | . . . . . . . 3 Repair 3 | . . . . . . . 3 Recycling Unit Hacks . | . . . . . . . . Scanalyzer 10 | . . . . . . . 10 Insert Component 4 | . . . . . . . 4 Analyze 6 | . . . . . . . 6 Garrison Access Hacks . | . . . . . . . . Unauthorized Hacks 4 | . 2 . . . . . 2 Terminals 4 | . 2 . . . . . 2 Track 1 | . 1 . . . . . . Botnet 1 | . . . . . . . 1 Operators 2 | . 1 . . . . . 1 Fabricators . | . . . . . . . . Repair Stations . | . . . . . . . . Recycling Units . | . . . . . . . . Scanalyzers . | . . . . . . . . Garrison Access . | . . . . . . . . Data Cores Recovered . | . . . . . . . . Used . | . . . . . . . . Hacking Detections 17 | . 3 . 2 . . 1 11 Full Trace Events 1 | . . . . . . . 1 Feedback Events . | . . . . . . . . Feedback Blocked . | . . . . . . . . Robot Schematics Acquired . | . . . . . . . . Robots Built . | . . . . . . . . Matter . | . . . . . . . . Time . | . . . . . . . . Total Robot Build Rating . | . . . . . . . . Part Schematics Acquired 5 | . . . . . . . 5 Parts Built . | . . . . . . . . Matter . | . . . . . . . . Time . | . . . . . . . . Total Part Build Rating . | . . . . . . . . Parts Repaired 3 | . . . . . . . 3 Time 132 | . . . . . . . 132 Parts Recycled . | . . . . . . . . Recycled Matter . | . . . . . . . . Retrieved Matter . | . . . . . . . . Retrieved Components . | . . . . . . . . Parts Scanalyzed 4 | . . . . . . . 4 Part Schematics Acquired 4 | . . . . . . . 4 Parts Damaged 2 | . . . . . . . 2 Bothacking | -11 -10 -10 -9 -9 -9 -8 -8 ------------ Run | Scr Mat Min Mat Min Exi Min Mat Used RIF Installer . | . . . . . . . . Robots Hacked . | . . . . . . . . Non-combat . | . . . . . . . . Combat . | . . . . . . . . Robot Hacks Applied . | . . . . . . . . Relay Couplers Released . | . . . . . . . . Robots Rewired . | . . . . . . . . Allies Hacked . | . . . . . . . . Hacks Repelled . | . . . . . . . . Allies | -11 -10 -10 -9 -9 -9 -8 -8 -------- Run | Scr Mat Min Mat Min Exi Min Mat Total Allies 3 | . . 3 . . . . . Largest Group 3 | . . 3 . . . . . Highest-Rated Group 40 | . . 40 . . . . . Highest-Rated Ally 16 | . . 16 . . . . . Total Orders . | . . . . . . . . Ally Attacks 49 | . . 19 . . 30 . . Total Damage 1867 | . . 210 . . 1657 . . Kills 8 | . . 5 . . 3 . . Allies Corrupted . | . . . . . . . . Allies Melted . | . . . . . . . . Turrets Deployed 3 | . . . . . 3 . . Intel | -11 -10 -10 -9 -9 -9 -8 -8 ------- Run | Scr Mat Min Mat Min Exi Min Mat Robot Analysis Total 3 | . 2 . 1 . . . . Derelict Logs Recovered 1 | . . 1 . . . . . Drone Launches . | . . . . . . . . Drone Recoveries . | . . . . . . . . Exploration | -11 -10 -10 -9 -9 -9 -8 -8 ------------- Run | Scr Mat Min Mat Min Exi Min Mat Turns Passed 8846 | 13 480 927 484 677 2853 497 2915 Spaces Moved 4614 | 6 367 618 218 360 1601 269 1175 Core 1 | . . . . . . . 1 Treads 2721 | . . . 116 9 1153 269 1174 Legs . | . . . . . . . . Wheels 1892 | 6 367 618 102 351 448 . . Hover . | . . . . . . . . Flight . | . . . . . . . . Fastest Speed 100 | 100 100 140 150 150 130 180 180 Average Speed 161 | 100 124 140 189 151 157 180 181 Slowest Speed 1850 | 100 140 140 240 200 180 220 1850 Overloaded Moves . | . . . . . . . . Propulsion Burnouts . | . . . . . . . . Robots Hopped 1 | . . . . . 1 . . Cave-ins Triggered . | . . . . . . . . Exploration Rate (%) 58 | 2 58 98 18 56 91 67 79 Regions Visited 7 Branch Regions 4 Pre-discovered Areas . | . . . . . . . . Known Exits Taken 2 | . 1 . 1 . . . . Unknown Exits Taken 5 | 1 . 1 . 1 1 1 . Scrap Searched 3 | . . 1 . 2 . . . Spaces Dug 4 | . . . . . . . 4 Terrain Destroyed 79 | . . . 23 . 21 31 4 Melee 4 | . . . . . . . 4 Projectile . | . . . . . . . . AOE 75 | . . . 23 . 21 31 . Terrain Rammed . | . . . . . . . . Walls Destroyed . | . . . . . . . . Machines Disabled . | . . . . . . . . Actions | -11 -10 -10 -9 -9 -9 -8 -8 --------- Run | Scr Mat Min Mat Min Exi Min Mat Total 5630 | 12 389 664 267 460 1866 276 1696 Wait 511 | . 7 35 22 66 129 . 252 Move 4605 | 5 366 617 217 359 1598 268 1175 Hop 1 | . . . . . 1 . . Pick Up 87 | . 7 2 8 7 33 . 30 Fast Attach 22 | 1 . 1 1 1 4 . 14 Attach 24 | 2 . . 2 . 11 2 7 Detach 8 | . . 1 1 . 3 . 3 Swap 36 | . 4 . 1 1 15 1 14 Drop 68 | 3 4 . 2 6 24 . 29 Fire 213 | 1 1 8 13 18 41 5 126 Melee 45 | . . . . . 7 . 38 Ram 1 | . . . . 1 . . . Kick . | . . . . . . . . Crush 9 | . . . . 1 . . 8 Escape Stasis . | . . . . . . . . Rewire . | . . . . . . . . Trap . | . . . . . . . . Miscellaneous . | . . . . . . . . Route ------- -11/Scrapyard -10/Materials (discovered 4 exits: *Mat x2 / *Min x2) -10/Mines (discovered 2 exits: *Mat x2) -9/Materials (discovered 2 exits: *Min / Sto) -9/Mines -9/Exiles (discovered 2 exits: *Min x2) -8/Mines -8/Materials (discovered 2 exits: [*Fac x2]) History --------- Turn | Location | Event 8 | -11/Scrapyard | Discovered new exit (range 3) 14 | -11/Scrapyard | Entered Materials 188 | -10/Materials | Discovered new exit (range 11) 310 | -10/Materials | Build established: Mutant 315 | -10/Materials | Identified exit to Mines 403 | -10/Materials | Discovered new exit (range 8) 494 | -10/Materials | Entered Mines 499 | -10/Mines | Assisted by bots powering up and referring to "LRC-V3" 513 | -10/Mines | Met a Derelict bent on vengeance 594 | -10/Mines | Found a hidden stash of uninstalled traps 630 | -10/Mines | Discovered new exit (range 8) 668 | -10/Mines | Found a damaged Exp. Sensor Array with a note attached 671 | -10/Mines | Found Prototype Device 750 | -10/Mines | Received a Rocket Launcher from a helpful Derelict 764 | -10/Mines | Build established: Hauler-Mutant 950 | -10/Mines | Discovered new exit (range 7) 1192 | -10/Mines | Learned 2 Materials zone layouts 1421 | -10/Mines | Entered Materials 1421 | -9/Materials | Evolved 2 slots: Propulsion x1, Utility x1 1445 | -9/Materials | Identified exit to Mines 1445 | -9/Materials | Identified exit to Storage 1905 | -9/Materials | Entered Mines 1911 | -9/Mines | Assembled infested the area 1938 | -9/Mines | Joined a pair of Derelicts in attacking an 0b10 outpost 2166 | -9/Mines | A weapon hastily lodged in a ceiling crevice suddenly fell to the ground 2321 | -9/Mines | Deemed a non-threat by the Exiles lab entrance 2322 | -9/Mines | Discovered new exit (range 5) 2582 | -9/Mines | Entered Exiles 2618 | -9/Exiles | Met 8R-AWN 2645 | -9/Exiles | Met EX-HEX 2757 | -9/Exiles | Met EX-BIN 2775 | -9/Exiles | Aligned with FarCom system 2777 | -9/Exiles | Given EX-Vault access code 2813 | -9/Exiles | Opened EX-Vault 2856 | -9/Exiles | Warned to stay clear of 0b10 Research branches 2903 | -9/Exiles | Met EX-DEC 2981 | -9/Exiles | Discovered new exit (range 12) 3162 | -9/Exiles | Found Deploy-a-Sentry 3164 | -9/Exiles | Found Deploy-a-Sentry 3167 | -9/Exiles | Found Deploy-a-Sentry 3306 | -9/Exiles | DAS Turret deployed 3308 | -9/Exiles | DAS Turret deployed 3326 | -9/Exiles | Build established: Mutant 3754 | -9/Exiles | Attacked by the Exiles 3884 | -9/Exiles | DAS Turret deployed 3909 | -9/Exiles | Allies destroyed 8R-AWN 4518 | -9/Exiles | Destroyed EX-HEX 4525 | -9/Exiles | Destroyed EX-BIN 4690 | -9/Exiles | Core integrity fell below 50% 4693 | -9/Exiles | Destroyed EX-DEC 4717 | -9/Exiles | Lost 4 parts (1p2n1u) 4983 | -9/Exiles | Build established: Scavenger-Mutant 5209 | -9/Exiles | Found Deploy-a-Sentry 5419 | -9/Exiles | Discovered new exit (range 14) 5435 | -9/Exiles | Left Exiles lab with Deploy-a-Sentry 5435 | -9/Exiles | Entered Mines 5867 | -8/Mines | Discovered new exit (range 10) 5932 | -8/Mines | Entered Materials 5932 | -8/Materials | Evolved 2 slots: Utility x2 5932 | -8/Materials | Identified Exp. Sensor Array 6239 | -8/Materials | Repaired Exp. Sensor Array 6271 | -8/Materials | Repaired Lgt. Treads 6298 | -8/Materials | Repaired Lgt. Treads 6426 | -8/Materials | Build established: Hauler-Mutant 6745 | -8/Materials | Discovered new exit (range 11) 8248 | -8/Materials | Discovered new exit (range 13) 8732 | -8/Materials | First assault squad dispatched 8847 | -8/Materials | Self-destructed Last Messages --------------- 08622_ Acquired 12 matter. 08665_ R-06 Scavenger collects Transport Network Coupler. 08670_ T-07 Excavator destroyed. 08689_ K-01 Serf collects debris. 08713_ K-01 Serf cleans the Electrolysis Chamber. 08732_ ALERT: Significant disruption in Zone 8B, assault force dispatched. 08744_ Slammed into T-07 Excavator. 08751_ Slammed into W-25 Informer. 08753_ Slammed into K-01 Serf. 08773_ Acquired 10 matter. 08818_ C-30 ARC bursts open, deploying its payload. 08818_ L-31 Rogue unfolds itself. 08818_ M-28 Smith unfolds itself. 08823_ L-31 Rogue destroyed. 08823_ Switching to secondary target: G-50 Soldier. 08834_ Destroyed Hvy. Laser. 08844_ L-31 Rogue destroyed. 08844_ Switching to secondary target: G-47 Trooper. 08845_ M-28 Smith fits Backup Laser III on G-50 Soldier. Map ----- +----------------------------------------------------+ | #?????????????# # + %%**=%######## | | """ #???########### # ######/######### | | """ #???# # # ??# + | | """ #???# """ """ # / ???# """ *### | | #???# """ """ # # ???# """ #?? | | ###+###???# """ """ + # ????# """ #?? | | ??# #?????# # # ????# #?# | | ??# #?????# # ###########?# """ ### | | ??# #?????# # # #?# """ ## | | ### ####??# ! # # !!! #?# """ ## | | #??########### + !!! #?# + | | ###### #????????????# # !! #?#+######### | | ?????# #????????????# ###########?# #???????# | | ?????# #?????######## ########?#### #????#### | | ?????# #?????# # # ###!! #????? # | | ?????# #?????# """ # # """ ##! #?????? | | ???### ###???# "T" # # "Y" ##! #???????# | | ???# #???# + + ##! [^#??????## | | ???# ##### # # = ##! ^#??????# | | ???# / ! [ # # ! ###!!=%######## T | | ???# ############ #############[* "" | | ???# #??????????# # #??########## | | ?#####+###??????????# !# #???????????# | | ?# ! #???????????# =g#=* ############### # | | ?#[ #???????????# %gm!""" ]# ] # # | | ?# #????????#??# #@""""" # / # # | | ?#= """ #???????????# # """"" ?#""" + # | | ?# """ #???????????# # """"" ?#""" ! # # | | ?#! """ #???????????# # """ ??#""" # ^^ ^ ^# | | ?########???????????# # ??# !### # | | ????????????????????# #######??########?# # | | ????????????????????# #????????# ######## # | | ????????????????????# #????????# ## # | | ????????????????????# ?????????# ## # | | ????????????????????# ?????????# """ ## # | | ????????????????????# ?????????# """ ## # | | ????????????????????# ?????????# """ ## # | | ????????????????????# ?????????# ## # | | #???????????????????+ ?????????# # | | #???????????????????? ?????????# + | | #????????????????????????????????# " " #* | | #????????????????????????????????# "R" ######### | | #????????????????????????????????# """ #???????? | | #????????????????????????????????#########???????? | | #????????????????????????????????????????????????? | | #??????????????????????????????????????????????#?? | | #??????????????????????????????????????????????# ? | | #??????????????????????????????????????????????# ? | | #??????????????????????????????????????????????# | | ???????????????????????????????????????????????# | +----------------------------------------------------+ Best States ------------- Heat Dissipation 31 Energy Generation 15 Energy Capacity 280 Matter Stores 300 Matter Capacity 300 Sight Range 16 Terrain Scan Density 10 Armor Coverage 300 Resistance: EM 15 Evasion (%) 40 Targeting Accuracy 16 Recoil Reduction 3 Item Schematics ----------------- System Shield | -8/Materials | Hacked Mak. Hover Unit | -8/Materials | Scanalyzed Hacking Suite | -8/Materials | Scanalyzed Exp. Sensor Array | -8/Materials | Scanalyzed Adv. Transmission Jammer | -8/Materials | Scanalyzed Robot Schematics ------------------ None Fabricated ------------ Nothing Alien Tech Used ----------------- None Achievements -------------- None Challenges ------------ None Game ------ Seed QuantumEtherialDoomcannon Manual? 0 Play Time 01:09:42 Cumulative 65.4 hours Start 2020.11.05 @ 15:17:04 End 2020.11.05 @ 18:22:37 Sessions 1 Manual Loads 0 Difficulty Rogue Special Mode Halloween2020/ForbiddenLore Game No. 42 Rogue 42 Adventurer 0 Explorer 0 Win Type - Total 1 Types 1/0/0/0/0/0/0/0/0 Lore% 29 Gallery% 41 Achievement% 35 Wizard Run 0 Options --------- ASCII 1 Keyboard 1 Movement Vi Keybinds 0 Fullscreen 1 Font 16/Terminus Map View 75x55 Tactical HUD 1 Map Filters NONE Filters NONE Steam 1 RUN: db251f01-3da3-4197-990a-8202899be275